fUST/lending_fUST_20250119
["ID","MTS","AMOUNT","RATE_DAILY","PERIOD"]
[349557667,1737294639397,-500.0,0.00022054,3]
[349557668,1737294639408,-818.57,0.00022054,3]
[349557669,1737294639417,-500.0,0.00022054,3]
[349557670,1737294639427,-500.0,0.00022054,3]
[349557671,1737294639437,-500.0,0.00022054,3]
[349557672,1737294639446,-500.0,0.00022054,3]
[349557673,1737294639457,-500.0,0.00022054,3]
[349557674,1737294639469,-500.0,0.00022054,3]
[349557675,1737294639478,-500.0,0.00022054,3]
[349557676,1737294639488,-500.0,0.00022054,3]
[349557677,1737294639499,-503.65076693,0.00022054,3]
[349557678,1737294639509,-500.0,0.00022054,3]
[349557679,1737294639519,-868.82,0.00022054,2]
[349557680,1737294639529,-500.0,0.00022054,3]
[349557681,1737294639539,-4722.62,0.00022054,3]
[349557682,1737294639550,-942.83,0.00022054,3]
[349557683,1737294639559,-10218.54865733,0.00022054,3]
[349557684,1737294639768,-657.79790201,0.00022054,3]
[349557685,1737294639789,-3786.55344066,0.00022054,3]
[349557686,1737294639799,-3144.75,0.00022054,3]
[349557687,1737294639808,-500.0,0.00022054,3]
[349557688,1737294639817,-41773.3,0.00022054,3]
[349557689,1737294639827,-500.0,0.00022054,3]
[349557690,1737294639836,-6523.23,0.00022054,3]
[349557691,1737294639846,-500.0,0.00022054,3]
[349557692,1737294639855,-245.57337836,0.00022054,3]
[349557693,1737294639864,-1265.75,0.00022054,3]
[349557694,1737294639873,-4791.92,0.00022054,3]
[349557695,1737294639883,-576.67,0.00022054,3]
[349557696,1737294639891,-1007.1,0.00022054,3]
[349557697,1737294639901,-500.0,0.00022054,3]
[349557698,1737294639912,-177.88,0.00022054,3]
[349557699,1737294639921,-944.49,0.00022054,3]
[349557700,1737294639931,-500.0,0.00022054,3]
[349557701,1737294639940,-5264.5,0.00022054,3]
[349557702,1737294639950,-448.69565656,0.00022054,3]
[349557703,1737294639959,-500.0,0.00022054,3]
[349557704,1737294639968,-578.42,0.00022054,3]
[349557705,1737294639978,-251.68,0.00022054,3]
[349557706,1737294639987,-1934.17,0.00022054,3]
[349557707,1737294639998,-5344.74,0.00022054,3]
[349557708,1737294640007,-500.0,0.00022054,3]
[349557709,1737294640017,-500.0,0.00022054,3]
[349557710,1737294640026,-1776.28,0.00022054,3]
[349557711,1737294640035,-151.0,0.00022054,7]
[349557712,1737294640045,-151.0,0.00022054,7]
[349557713,1737294640054,-500.0,0.00022054,3]
[349557714,1737294640063,-1194.18,0.00022054,3]
[349557715,1737294640073,-10750.59,0.00022054,3]
[349557716,1737294640083,-500.0,0.00022054,3]
[349557717,1737294640092,-500.0,0.00022054,2]
[349557718,1737294640101,-1704.07,0.00022054,3]
[349557719,1737294640111,-556.74,0.00022054,3]
[349557720,1737294640120,-14816.63,0.00022054,3]
[349557721,1737294640129,-500.0,0.00022054,3]
[349557722,1737294640139,-4715.02,0.00022054,3]
[349557724,1737294640149,-500.0,0.00022054,3]
[349557725,1737294640161,-500.0,0.00022054,3]
[349557727,1737294640170,-500.0,0.00022054,3]
[349557729,1737294640180,-23544.57,0.00022054,3]
[349557731,1737294640189,-500.0,0.00022054,3]
[349557733,1737294640199,-3178.92,0.00022054,3]
[349557734,1737294640209,-1255.41,0.00022054,3]
[349557735,1737294640218,-500.0,0.00022054,3]
[349557736,1737294640227,-3964.74,0.00022054,3]
[349557737,1737294640237,-349.66849612,0.00022054,3]
[349557738,1737294640247,-500.0,0.00022054,3]
[349557739,1737294640256,-500.0,0.00022054,3]
[349557740,1737294640265,-500.0,0.00022054,3]
[349557741,1737294640275,-1938.59,0.00022054,3]
[349557742,1737294640285,-561.93,0.00022054,3]
[349557743,1737294640295,-500.0,0.00022054,3]
[349557744,1737294640304,-1714.83,0.00022054,3]
[349557745,1737294640313,-740.14,0.00022054,3]
[349557746,1737294640322,-1166.05,0.00022054,3]
[349557747,1737294640331,-1567.94,0.00022054,3]
[349557748,1737294640340,-500.0,0.00022054,3]
[349557749,1737294640349,-500.0,0.00022054,3]
[349557750,1737294640359,-500.0,0.00022054,3]
[349557751,1737294640368,-1134.88,0.00022054,3]
[349557752,1737294640378,-1416.92,0.00022054,3]
[349557753,1737294640387,-500.0,0.00022054,3]
[349557754,1737294640397,-500.0,0.00022054,3]
[349557755,1737294640408,-983.14,0.00022054,3]
[349557756,1737294640417,-500.0,0.00022054,3]
[349557757,1737294640427,-3054.08,0.00022054,3]
[349557758,1737294640436,-500.0,0.00022054,8]
[349557759,1737294640446,-500.0,0.00022054,8]
[349557760,1737294640457,-1000.0,0.00022076,2]
[349557761,1737294640467,-620.0,0.000221,2]
[349557762,1737294640477,-8803.27601829,0.00022107,3]
[349557763,1737294640486,-1000.0,0.00022126,2]
[349557764,1737294640495,-1000.0,0.00022131,2]
[349557765,1737294640506,-1000.0,0.00022137,2]
[349557766,1737294640515,-1000.0,0.00022137,2]
[349557767,1737294640525,-305.97413699,0.00022148,2]
[349557768,1737294640535,-1000.0,0.00022149,2]
[349557769,1737294640546,-1000.0,0.00022162,2]
[349557770,1737294640555,-1000.0,0.00022184,2]
[349557771,1737294640565,-500.0,0.0002219,2]
[349557772,1737294640574,-500.0,0.00022191,3]
[349557773,1737294640584,-500.0,0.00022191,3]
[349557774,1737294640593,-500.0,0.00022191,3]
[349557775,1737294640603,-500.0,0.00022191,3]
[349557776,1737294640612,-500.0,0.00022191,3]
[349557777,1737294640622,-500.0,0.00022191,3]
[349557778,1737294640631,-500.0,0.00022191,3]
[349557779,1737294640641,-843.32,0.00022191,3]
[349557780,1737294640650,-500.0,0.00022191,3]
[349557781,1737294640661,-1347.58,0.00022191,3]
[349557782,1737294640670,-536.04557566,0.00022191,3]
[349557783,1737294640680,-500.0,0.00022191,3]
[349557784,1737294640689,-500.0,0.00022191,3]
[349557785,1737294640698,-696.07,0.00022191,3]
[349557786,1737294640707,-500.0,0.00022191,3]
[349557787,1737294640716,-500.0,0.00022191,3]
[349557789,1737294640726,-1154.84,0.00022191,3]
[349557791,1737294640735,-500.0,0.00022191,3]
[349557793,1737294640744,-678.96,0.00022191,3]
[349557795,1737294640754,-500.0,0.00022191,3]
[349557796,1737294640762,-500.0,0.00022191,3]
[349557798,1737294640772,-500.0,0.00022191,3]
[349557800,1737294640781,-500.0,0.00022191,3]
[349557802,1737294640790,-818.57,0.00022191,3]
[349557804,1737294640799,-500.0,0.00022191,3]
[349557806,1737294640808,-500.0,0.00022191,3]
[349557808,1737294640817,-207.52499694,0.00022191,3]
[349557809,1737294640826,-500.0,0.00022191,3]
[349557810,1737294640835,-500.0,0.00022191,3]
[349557811,1737294640848,-500.0,0.00022191,3]
[349557812,1737294640857,-500.0,0.00022191,3]
[349557813,1737294640866,-500.0,0.00022191,3]
[349557814,1737294640875,-868.82,0.00022191,2]
[349557815,1737294640885,-500.0,0.00022191,3]
[349557816,1737294640894,-4722.62,0.00022191,3]
[349557817,1737294640903,-942.83,0.00022191,3]
[349557818,1737294640915,-14662.9,0.00022191,3]
[349557819,1737294640925,-3144.75,0.00022191,3]
[349557820,1737294640934,-556.66550753,0.00022191,3]
[349557823,1737294640944,-41773.3,0.00022191,3]
[349557825,1737294640953,-500.0,0.00022191,3]
[349557827,1737294640964,-6523.23,0.00022191,3]
[349557829,1737294640973,-500.0,0.00022191,3]
[349557831,1737294640983,-1265.75,0.00022191,3]
[349557833,1737294640992,-4791.92,0.00022191,3]
[349557835,1737294641002,-1007.1,0.00022191,3]
[349557837,1737294641011,-500.0,0.00022191,3]
[349557839,1737294641021,-944.49,0.00022191,3]
[349557841,1737294641030,-500.0,0.00022191,3]
[349557843,1737294641039,-5264.5,0.00022191,3]
[349557845,1737294641048,-500.0,0.00022191,3]
[349557847,1737294641057,-578.42,0.00022191,3]
[349557849,1737294641066,-1934.17,0.00022191,3]
[349557851,1737294641075,-5344.74,0.00022191,3]
[349557853,1737294641084,-500.0,0.00022191,3]
[349557855,1737294641093,-500.0,0.00022191,3]
[349557857,1737294641103,-1776.28,0.00022191,3]
[349557859,1737294641112,-151.0,0.00022191,7]
[349557861,1737294641121,-151.0,0.00022191,7]
[349557863,1737294641130,-500.0,0.00022191,3]
[349557865,1737294641139,-1194.18,0.00022191,3]
[349557867,1737294641149,-10750.59,0.00022191,3]
[349557869,1737294641159,-500.0,0.00022191,3]
[349557871,1737294641169,-486.59,0.00022191,2]
[349557873,1737294641179,-1704.07,0.00022191,3]
[349557875,1737294641188,-14816.63,0.00022191,3]
[349557877,1737294641197,-500.0,0.00022191,3]
[349557879,1737294641209,-4715.02,0.00022191,3]
[349557882,1737294641219,-500.0,0.00022191,3]
[349557884,1737294641228,-500.0,0.00022191,3]
[349557886,1737294641237,-433.18,0.00022191,3]
[349557888,1737294641247,-23544.57,0.00022191,3]
[349557890,1737294641257,-500.0,0.00022191,3]
[349557892,1737294641266,-3178.92,0.00022191,3]
[349557894,1737294641275,-1255.41,0.00022191,3]
[349557896,1737294641285,-500.0,0.00022191,3]
[349557898,1737294641294,-3964.74,0.00022191,3]
[349557900,1737294641303,-500.0,0.00022191,3]
[349557902,1737294641312,-500.0,0.00022191,3]
[349557904,1737294641321,-500.0,0.00022191,3]
[349557906,1737294641330,-1938.59,0.00022191,3]
[349557908,1737294641340,-561.93,0.00022191,3]
[349557910,1737294641349,-500.0,0.00022191,3]
[349557912,1737294641359,-1714.83,0.00022191,3]
[349557914,1737294641368,-740.14,0.00022191,3]
[349557916,1737294641377,-1166.05,0.00022191,3]
[349557918,1737294641386,-1567.94,0.00022191,3]
[349557920,1737294641395,-500.0,0.00022191,3]
[349557922,1737294641405,-500.0,0.00022191,3]
[349557924,1737294641416,-500.0,0.00022191,3]
[349557926,1737294641425,-1134.88,0.00022191,3]
[349557928,1737294641434,-1416.92,0.00022191,3]
[349557937,1737294641529,-500.0,0.00022191,3]
[349557938,1737294641539,-983.14,0.00022191,3]
[349557939,1737294641548,-500.0,0.00022191,3]
[349557940,1737294641559,-3054.08,0.00022191,3]
[349557941,1737294641569,-7691.4,0.000222,14]
[349557942,1737294641578,-151.0,0.000222,6]
[349557943,1737294641587,-6189.72846845,0.000222,2]
[349557944,1737294641596,-8803.27601829,0.0002221,3]
[349557945,1737294641606,-1000.0,0.00022224,2]
[349557946,1737294641615,-1235.3364991,0.00022251,2]
[349557947,1737294641624,-1000.0,0.00022263,2]
[349557948,1737294641633,-1000.0,0.00022265,2]
[349557949,1737294641642,-1000.0,0.00022267,2]
[349557950,1737294641651,-500.0,0.00022273,2]
[349557951,1737294641662,-500.0,0.00022273,2]
[349557952,1737294641671,-500.0,0.00022273,2]
[349557953,1737294641679,-486.15627763,0.00022273,2]
[349557954,1737294641689,-500.0,0.00022273,2]
[349557955,1737294641699,-394.80844747,0.00022273,2]
[349557956,1737294641708,-500.0,0.00022273,2]
[349557958,1737294641717,-1000.0,0.00022292,2]
[349557960,1737294641727,-203379.13363585,0.000223,7]
[349557963,1737294641741,-1696.86499,0.000223,7]
[349557974,1737294641830,-616.98756208,0.000223,7]
[349557976,1737294641841,-22027.38338441,0.000223,7]
[349557997,1737294642052,-480.147792,0.000223,7]
[349558299,1737294646804,-939.87421443,0.00021917,3]
[349558586,1737294751824,26710.44889359,0.000192,4]
[349558590,1737294986068,1005.64,0.0002,2]
[349558592,1737295030670,185.681721,0.00013973,2]
[349558593,1737295249752,350.16461202,0.0002,2]
[349558594,1737295487031,186.88089033,0.0002,2]
[349558595,1737295536160,150.09,0.00024,120]
[349558598,1737295576442,4487.32296255,0.0002,2]
[349558599,1737295591046,4873.85766052,0.0002,2]
[349558611,1737295753380,164.42528209,0.000189,2]
[349558736,1737295832410,-314.76618767,0.000201,2]
[349558738,1737295832420,-185.681721,0.00020447,2]
[349558740,1737295832430,-243.9769039,0.00020592,2]
[349558742,1737295832440,-191.65473611,0.000207,2]
[349558745,1737295832453,-191.65473609,0.00020776,2]
[349558747,1737295832462,-2076.96571523,0.00021053,2]
[349558749,1737295832474,-1302.03428477,0.00021053,2]
[349558751,1737295832483,-457.775,0.0002118,2]
[349558753,1737295832492,-191.65473609,0.00021204,2]
[349558755,1737295832503,-500.0,0.00021916,2]
[349558757,1737295832512,-210.78896345,0.00021916,2]
[349558759,1737295832522,-500.0,0.00021916,2]
[349558761,1737295832532,-500.0,0.00021916,2]
[349558762,1737295832541,-375.03453043,0.00021916,2]
[349558764,1737295832550,-335.20165422,0.00021916,2]
[349558766,1737295832560,-500.0,0.00021916,5]
[349558768,1737295832569,-550.52483171,0.00021916,5]
[349558770,1737295832579,-500.0,0.00021916,2]
[349558772,1737295832588,-500.0,0.00021916,2]
[349558774,1737295832599,-500.0,0.00021916,2]
[349558776,1737295832609,-500.0,0.00021916,2]
[349558778,1737295832618,-500.0,0.00021916,2]
[349558780,1737295832628,-500.0,0.00021916,2]
[349558782,1737295832637,-165.44149425,0.00021916,2]
[349558784,1737295832647,-317.99639497,0.00021916,2]
[349558786,1737295832657,-500.0,0.00021916,2]
[349558788,1737295832667,-500.0,0.00021916,2]
[349558790,1737295832676,-500.0,0.00021916,2]
[349558792,1737295832686,-500.0,0.00021916,2]
[349558794,1737295832696,-500.0,0.00021916,2]
[349558796,1737295832706,-500.0,0.00021916,2]
[349558798,1737295832715,-368.94534865,0.00021916,2]
[349558800,1737295832724,-603.071,0.00021916,2]
[349558801,1737295832734,-500.0,0.00021916,2]
[349558803,1737295832743,-407.55752972,0.00021916,2]
[349558805,1737295832756,-650.0,0.00021916,2]
[349558807,1737295832766,-500.0,0.00021916,2]
[349558809,1737295832776,-118.04226674,0.00021916,2]
[349558811,1737295832789,-485.76061208,0.00021916,2]
[349558813,1737295832799,-500.0,0.00021916,2]
[349558815,1737295832811,-500.0,0.00021916,2]
[349558817,1737295832821,-500.0,0.00021916,7]
[349558819,1737295832830,-500.0,0.00021917,3]
[349558821,1737295832840,-500.0,0.00021917,3]
[349558823,1737295832851,-502.06860279,0.00021917,3]
[349558825,1737295832862,-500.0,0.00021917,3]
[349558827,1737295832871,-500.0,0.00021917,3]
[349558829,1737295832881,-500.70356967,0.00021917,3]
[349558831,1737295832891,-198.73,0.00021917,3]
[349558833,1737295832903,-500.0,0.00021917,3]
[349558835,1737295832912,-168.976,0.00021917,2]
[349558837,1737295832922,-500.0,0.00021917,3]
[349558839,1737295832931,-500.0,0.00021917,3]
[349558841,1737295832941,-589.87396477,0.00021917,3]
[349558843,1737295832951,-500.0,0.00021917,3]
[349558845,1737295832961,-209.84544229,0.00021917,3]
[349558847,1737295832971,-290.03242476,0.00021917,3]
[349558849,1737295832980,-758.74,0.00021917,3]
[349558851,1737295832990,-500.0,0.00021917,3]
[349558853,1737295833005,-1199.97,0.00021917,3]
[349558855,1737295833016,-500.0,0.00021917,3]
[349558857,1737295833026,-500.0,0.00021917,3]
[349558859,1737295833035,-500.0,0.00021917,3]
[349558861,1737295833045,-500.0,0.00021917,3]
[349558863,1737295833055,-609.06,0.00021917,3]
[349558865,1737295833065,-1010.49,0.00021917,3]
[349558867,1737295833076,-500.0,0.00021917,3]
[349558868,1737295833085,-500.0,0.00021917,3]
[349558869,1737295833095,-594.09,0.00021917,3]
[349558870,1737295833105,-500.0,0.00021917,3]
[349558871,1737295833116,-500.0,0.00021917,3]
[349558872,1737295833127,-500.0,0.00021917,3]
[349558873,1737295833137,-500.0,0.00021917,3]
[349558874,1737295833146,-780.83576431,0.00021917,3]
[349558875,1737295833158,-500.0,0.00021917,3]
[349558876,1737295833168,-500.0,0.00021917,3]
[349558877,1737295833178,-500.0,0.00021917,3]
[349558878,1737295833188,-716.25,0.00021917,3]
[349558879,1737295833198,-500.0,0.00021917,3]
[349558880,1737295833208,-500.0,0.00021917,3]
[349558881,1737295833218,-500.0,0.00021917,3]
[349558882,1737295833227,-500.0,0.00021917,3]
[349558883,1737295833237,-191.84152908,0.00021917,3]
[349558884,1737295833247,-500.0,0.00021917,3]
[349558885,1737295833260,-760.22,0.00021917,2]
[349558886,1737295833269,-500.0,0.00021917,3]
[349558887,1737295833278,-500.0,0.00021917,3]
[349558888,1737295833288,-1264.49,0.00021917,3]
[349558889,1737295833298,-942.61,0.00021917,3]
[349558890,1737295833308,-500.0,0.00021917,3]
[349558891,1737295833318,-2772.49,0.00021917,3]
[349558892,1737295833327,-4132.29,0.00021917,3]
[349558893,1737295833337,-824.98,0.00021917,3]
[349558894,1737295833346,-5707.82,0.00021917,3]
[349558895,1737295833356,-500.0,0.00021917,3]
[349558896,1737295833366,-500.0,0.00021917,3]
[349558897,1737295833376,-1653.76,0.00021917,3]
[349558898,1737295833385,-500.0,0.00021917,3]
[349558899,1737295833396,-36983.1,0.00021917,3]
[349558901,1737295833406,-500.0,0.00021917,3]
[349558903,1737295833416,-4606.43,0.00021917,3]
[349558905,1737295833426,-1107.54,0.00021917,3]
[349558907,1737295833436,-501.64272839,0.00021917,3]
[349558909,1737295833445,-13375.56,0.00021917,3]
[349558911,1737295833455,-500.0,0.00021917,3]
[349558913,1737295833465,-500.0,0.00021917,3]
[349558915,1737295833475,-881.22,0.00021917,3]
[349558917,1737295833485,-1692.4,0.00021917,3]
[349558919,1737295833495,-500.0,0.00021917,3]
[349558921,1737295833508,-1554.24,0.00021917,3]
[349558923,1737295833518,-500.0,0.00021917,3]
[349558925,1737295833528,-4739.15,0.00021917,3]
[349558927,1737295833537,-1044.9,0.00021917,3]
[349558928,1737295833547,-506.12,0.00021917,3]
[349558930,1737295833557,-1491.06,0.00021917,3]
[349558932,1737295833567,-500.0,0.00021917,3]
[349558934,1737295833578,-500.0,0.00021917,3]
[349558936,1737295833588,-20830.86,0.00021917,3]
[349558938,1737295833598,-9911.55,0.00021917,3]
[349558940,1737295833608,-500.0,0.00021917,3]
[349558942,1737295833618,-1130.3,0.00021917,3]
[349558944,1737295833627,-500.0,0.00021917,3]
[349558946,1737295833637,-500.0,0.00021917,3]
[349558947,1737295833646,-500.0,0.00021917,3]
[349558949,1737295833657,-500.0,0.00021917,3]
[349558952,1737295833667,-668.46,0.00021917,3]
[349558954,1737295833677,-157.25128764,0.00021917,3]
[349558956,1737295833687,-13114.6,0.00021917,3]
[349558958,1737295833697,-2887.91,0.00021917,3]
[349558960,1737295833707,-4225.57,0.00021917,3]
[349558961,1737295833717,-500.0,0.00021917,3]
[349558963,1737295833726,-3489.98,0.00021917,3]
[349558965,1737295833735,-500.0,0.00021917,3]
[349558967,1737295833745,-1746.98,0.00021917,3]
[349558969,1737295833756,-500.0,0.00021917,3]
[349558971,1737295833766,-500.0,0.00021917,3]
[349558973,1737295833776,-1371.94,0.00021917,3]
[349558975,1737295833785,-500.0,0.00021917,3]
[349558977,1737295833795,-500.0,0.00021917,3]
[349558979,1737295833805,-1500.47,0.00021917,3]
[349558981,1737295833816,-1020.29,0.00021917,3]
[349558982,1737295833828,-1013.85,0.00021917,3]
[349558985,1737295833846,-2713.98,0.00021917,3]
[349558988,1737295833859,-500.0,0.00021917,3]
[349558990,1737295833870,-418.331,0.00021934,2]
[349558991,1737295833880,-500.0,0.00022053,2]
[349558993,1737295833891,-169.67240845,0.00022053,2]
[349558995,1737295833901,-288.91,0.00022054,3]
[349558997,1737295833912,-500.0,0.00022054,3]
[349558999,1737295833922,-500.0,0.00022054,3]
[349559001,1737295833933,-500.0,0.00022054,3]
[349559003,1737295833944,-500.0,0.00022054,3]
[349559005,1737295833954,-758.74,0.00022054,3]
[349559007,1737295833965,-500.0,0.00022054,3]
[349559009,1737295833976,-1199.97,0.00022054,3]
[349559011,1737295833986,-500.0,0.00022054,3]
[349559013,1737295833996,-500.0,0.00022054,3]
[349559015,1737295834010,-500.0,0.00022054,3]
[349559017,1737295834020,-609.06,0.00022054,3]
[349559019,1737295834031,-1010.49,0.00022054,3]
[349559021,1737295834041,-500.0,0.00022054,3]
[349559023,1737295834052,-500.0,0.00022054,3]
[349559025,1737295834063,-594.09,0.00022054,3]
[349559027,1737295834073,-500.0,0.00022054,3]
[349559029,1737295834083,-500.0,0.00022054,3]
[349559031,1737295834092,-500.0,0.00022054,3]
[349559033,1737295834102,-500.0,0.00022054,3]
[349559035,1737295834113,-500.0,0.00022054,3]
[349559036,1737295834123,-716.25,0.00022054,3]
[349559038,1737295834134,-500.0,0.00022054,3]
[349559040,1737295834144,-500.0,0.00022054,3]
[349559042,1737295834154,-500.0,0.00022054,3]
[349559044,1737295834163,-760.22,0.00022054,2]
[349559046,1737295834173,-500.0,0.00022054,3]
[349559048,1737295834183,-500.0,0.00022054,3]
[349559050,1737295834193,-1264.49,0.00022054,3]
[349559052,1737295834204,-942.61,0.00022054,3]
[349559054,1737295834215,-500.0,0.00022054,3]
[349559056,1737295834226,-2772.49,0.00022054,3]
[349559058,1737295834236,-4132.29,0.00022054,3]
[349559060,1737295834247,-824.98,0.00022054,3]
[349559062,1737295834261,-5707.82,0.00022054,3]
[349559064,1737295834272,-592.34,0.00022054,3]
[349559066,1737295834284,-500.0,0.00022054,3]
[349559068,1737295834295,-1653.76,0.00022054,3]
[349559070,1737295834305,-500.0,0.00022054,3]
[349559072,1737295834315,-5316.89115358,0.00022054,3]
[349559395,1737295838131,-689.643675,0.00020656,2]
[349559396,1737295838141,-500.0,0.00021917,3]
[349559397,1737295838151,-1159.11,0.00021917,3]
[349559398,1737295838161,-31666.20884642,0.00022054,3]
[349559399,1737295838171,-826.43,0.00022054,3]
[349559400,1737295838181,-500.0,0.00022054,3]
[349559401,1737295838191,-4606.43,0.00022054,3]
[349559402,1737295838200,-1107.54,0.00022054,3]
[349559403,1737295838210,-13375.56,0.00022054,3]
[349559404,1737295838220,-500.0,0.00022054,3]
[349559405,1737295838230,-881.22,0.00022054,3]
[349559406,1737295838240,-1692.4,0.00022054,3]
[349559407,1737295838250,-500.0,0.00022054,3]
[349559408,1737295838261,-1554.24,0.00022054,3]
[349559409,1737295838271,-500.0,0.00022054,3]
[349559410,1737295838281,-2838.15127578,0.00022054,3]
[349559477,1737295840293,-264.354,0.00022054,3]
[349559484,1737295840348,-1636.64472422,0.00022054,3]
[349559486,1737295840358,-1044.9,0.00022054,3]
[349559488,1737295840368,-506.12,0.00022054,3]
[349559490,1737295840377,-1491.06,0.00022054,3]
[349559492,1737295840387,-500.0,0.00022054,3]
[349559494,1737295840397,-500.0,0.00022054,3]
[349559496,1737295840406,-20830.86,0.00022054,3]
[349559498,1737295840416,-9911.55,0.00022054,3]
[349559500,1737295840425,-500.0,0.00022054,3]
[349559502,1737295840435,-1130.3,0.00022054,3]
[349559504,1737295840444,-500.0,0.00022054,3]
[349559506,1737295840453,-500.0,0.00022054,3]
[349559508,1737295840463,-500.0,0.00022054,3]
[349559510,1737295840473,-500.0,0.00022054,3]
[349559512,1737295840483,-668.46,0.00022054,3]
[349559514,1737295840492,-13114.6,0.00022054,3]
[349559516,1737295840502,-2887.91,0.00022054,3]
[349559518,1737295840515,-4225.57,0.00022054,3]
[349559520,1737295840525,-500.0,0.00022054,3]
[349559522,1737295840534,-3489.98,0.00022054,3]
[349559524,1737295840544,-500.0,0.00022054,3]
[349559526,1737295840553,-1746.98,0.00022054,3]
[349559528,1737295840563,-500.0,0.00022054,3]
[349559530,1737295840572,-500.0,0.00022054,3]
[349559532,1737295840582,-1371.94,0.00022054,3]
[349559534,1737295840591,-500.0,0.00022054,3]
[349559536,1737295840601,-1500.47,0.00022054,3]
[349559538,1737295840610,-1020.29,0.00022054,3]
[349559540,1737295840619,-1013.85,0.00022054,3]
[349559542,1737295840628,-2713.98,0.00022054,3]
[349559544,1737295840638,-500.0,0.00022054,3]
[349559546,1737295840648,-500.0,0.00022054,3]
[349559548,1737295840657,-1159.11,0.00022054,3]
[349559550,1737295840667,-192.0244838,0.00022069,2]
[349559552,1737295840677,-166.0,0.00022129,2]
[349559555,1737295840687,-500.0,0.0002213,8]
[349559557,1737295840698,-500.0,0.00022152,8]
[349559559,1737295840708,-500.0,0.00022191,3]
[349559561,1737295840718,-500.0,0.00022191,3]
[349559563,1737295840728,-500.0,0.00022191,3]
[349559565,1737295840737,-500.0,0.00022191,3]
[349559567,1737295840747,-758.74,0.00022191,3]
[349559569,1737295840757,-500.0,0.00022191,3]
[349559571,1737295840770,-1199.97,0.00022191,3]
[349559573,1737295840779,-500.0,0.00022191,3]
[349559575,1737295840788,-500.0,0.00022191,3]
[349559577,1737295840798,-500.0,0.00022191,3]
[349559579,1737295840813,-609.06,0.00022191,3]
[349559581,1737295840832,-1010.49,0.00022191,3]
[349559583,1737295840848,-500.0,0.00022191,3]
[349559585,1737295840857,-500.0,0.00022191,3]
[349559587,1737295840867,-594.09,0.00022191,3]
[349559589,1737295840876,-500.0,0.00022191,3]
[349559591,1737295840885,-500.0,0.00022191,3]
[349559593,1737295840895,-500.0,0.00022191,3]
[349559595,1737295840905,-500.0,0.00022191,3]
[349559597,1737295840915,-151.0,0.00022191,7]
[349559599,1737295840924,-500.0,0.00022191,3]
[349559601,1737295840934,-716.25,0.00022191,3]
[349559603,1737295840943,-500.0,0.00022191,3]
[349559605,1737295840953,-500.0,0.00022191,3]
[349559607,1737295840963,-500.0,0.00022191,3]
[349559609,1737295840973,-760.22,0.00022191,2]
[349559611,1737295840983,-586.91,0.00022191,3]
[349559613,1737295840992,-151.0,0.00022191,7]
[349559615,1737295841002,-151.0,0.00022191,7]
[349559617,1737295841015,-942.61,0.00022191,3]
[349559619,1737295841024,-500.0,0.00022191,3]